Workbook

Sheet 財務報告
B2: 年度財務報表 | K2: 2016 | N2: 於儲存格 L2 選取報表年份
B3: 公司名稱 | N3: 若要編輯資料，請選取 財務資料輸入 工作表
B5: 關鍵指標 | D5: 按一下以變更報表關鍵指標
B7: =計算!B8 -> 收入 | D7: =計算!B9 -> 淨收益 | F7: =計算!B10 -> 利息 | H7: =計算!B11 -> 折舊 | J7: =計算!B12 -> 營運利潤
B8: =IFERROR(計算!G8,"") -> NT$5,417,516 | D8: =IFERROR(計算!G9,"") -> NT$2,024,246 | F8: =IFERROR(計算!G10,"") -> NT$113,684 | H8: =IFERROR(計算!G11,"") -> NT$166,406 | J8: =IFERROR(計算!G12,"") -> NT$2,202,780
B9: =計算!H8 -> 0% | D9: =計算!H9 -> 2% | F9: =計算!H10 -> 14% | H9: =計算!H11 -> 9% | J9: =計算!H12 -> -5%
B13: 所有指標 | D13: 請勿修改下列資訊。按一下以輸入財務資料
B15: 指標 | D15: ="報表年 ("&SelectedYear&")" -> 報表年 (2016) | F15: ="前一年 ("&SelectedYear-1&")" -> 前一年 (2015) | H15: 變化幅度 | I15: =CONCATENATE(Years," 年趨勢") -> 5 年趨勢
B16: =計算!B15 -> 收入 | D16: =IF($B16="","",計算!G15) -> NT$5,417,516.40 | F16: =IF($B16="","",計算!F15) -> NT$5,400,798.90 | H16: =IFERROR(D16/F16-1,"") -> 0%
B17: =計算!B16 -> 營運費用 | D17: =IF($B17="","",計算!G16) -> NT$2,832,583.50 | F17: =IF($B17="","",計算!F16) -> NT$2,426,499.90 | H17: 17%
B18: =計算!B17 -> 營運利潤 | D18: =IF($B18="","",計算!G17) -> NT$2,202,779.70 | F18: =IF($B18="","",計算!F17) -> NT$2,319,534.90 | H18: -5%
B19: =計算!B18 -> 折舊 | D19: =IF($B19="","",計算!G18) -> NT$166,406.40 | F19: =IF($B19="","",計算!F18) -> NT$152,052.60 | H19: 9%
B20: =計算!B19 -> 利息 | D20: =IF($B20="","",計算!G19) -> NT$113,684.10 | F20: =IF($B20="","",計算!F19) -> NT$100,149.00 | H20: 14%
B21: =計算!B20 -> 淨收益 | D21: =IF($B21="","",計算!G20) -> NT$2,024,245.50 | F21: =IF($B21="","",計算!F20) -> NT$1,988,163.00 | H21: 2%
B22: =計算!B21 -> 稅金 | D22: =IF($B22="","",計算!G21) -> NT$942,247.50 | F22: =IF($B22="","",計算!F21) -> NT$882,735.90 | H22: 7%
B23: =計算!B22 -> 稅後淨利 | D23: =IF($B23="","",計算!G22) -> NT$1,507,430.40 | F23: =IF($B23="","",計算!F22) -> NT$1,273,146.00 | H23: 18%
B24: =計算!B23 -> 指標 1 | D24: =IF($B24="","",計算!G23) -> NT$598.80 | F24: =IF($B24="","",計算!F23) -> NT$503.40 | H24: 19%
B25: =計算!B24 -> 指標 2 | D25: =IF($B25="","",計算!G24) -> NT$780.30 | F25: =IF($B25="","",計算!F24) -> NT$655.20 | H25: 19%
B26: =計算!B25 -> 指標 3 | D26: =IF($B26="","",計算!G25) -> NT$932.40 | F26: =IF($B26="","",計算!F25) -> NT$791.70 | H26: 18%
B27: =計算!B26 -> 指標 4 | D27: =IF($B27="","",計算!G26) -> NT$447.60 | F27: =IF($B27="","",計算!F26) -> NT$437.70 | H27: 2%
B28: =計算!B27 -> 指標 5 | D28: =IF($B28="","",計算!G27) -> NT$30.90 | F28: =IF($B28="","",計算!F27) -> NT$30.00 | H28: 3%
B29: =計算!B28 -> 指標 6 | D29: =IF($B29="","",計算!G28) -> NT$10.20 | F29: =IF($B29="","",計算!F28) -> NT$9.00 | H29: 13%
B30: =計算!B29 ->  | D30: =IF($B30="","",計算!G29) ->  | F30: =IF($B30="","",計算!F29) -> 
B31: =計算!B30 ->  | D31: =IF($B31="","",計算!G30) ->  | F31: =IF($B31="","",計算!F30) -> 
B32: =計算!B31 ->  | D32: =IF($B32="","",計算!G31) ->  | F32: =IF($B32="","",計算!F31) -> 
B33: =計算!B32 ->  | D33: =IF($B33="","",計算!G32) ->  | F33: =IF($B33="","",計算!F32) -> 
B34: =計算!B33 ->  | D34: =IF($B34="","",計算!G33) ->  | F34: =IF($B34="","",計算!F33) -> 
B35: =計算!B34 ->  | D35: =IF($B35="","",計算!G34) ->  | F35: =IF($B35="","",計算!F34) -> 
B36: =計算!B35 ->  | D36: =IF($B36="","",計算!G35) ->  | F36: =IF($B36="","",計算!F35) -> 
B37: =計算!B36 ->  | D37: =IF($B37="","",計算!G36) ->  | F37: =IF($B37="","",計算!F36) -> 
B38: =計算!B37 ->  | D38: =IF($B38="","",計算!G37) ->  | F38: =IF($B38="","",計算!F37) -> 
B39: =計算!B38 ->  | D39: =IF($B39="","",計算!G38) ->  | F39: =IF($B39="","",計算!F38) -> 
B40: =計算!B39 ->  | D40: =IF($B40="","",計算!G39) ->  | F40: =IF($B40="","",計算!F39) -> 

Sheet 財務資料輸入
B2: 輸入您的財務資料
B3: 您可以定義最多 25 項關鍵指標、最長涵蓋 7 年
B4: 按一下以檢視財務報表
B5: 指標名稱 | C5: 2010 | D5: 2011 | E5: 2012 | F5: 2013 | G5: 2014 | H5: 2015 | I5: 2016
B6: 收入 | C6: NT$3,750,000.00 | D6: NT$4,024,123.50 | E6: NT$4,281,851.40 | F6: NT$4,520,623.80 | G6: NT$4,951,336.80 | H6: NT$5,400,798.90 | I6: NT$5,417,516.40
B7: 營運費用 | C7: NT$1,950,000.00 | D7: NT$2,128,869.30 | E7: NT$2,277,745.80 | F7: NT$2,367,038.10 | G7: NT$2,450,231.10 | H7: NT$2,426,499.90 | I7: NT$2,832,583.50
B8: 營運利潤 | C8: NT$1,800,000.00 | D8: NT$1,926,219.00 | E8: NT$2,065,730.70 | F8: NT$2,269,297.50 | G8: NT$2,302,657.80 | H8: NT$2,319,534.90 | I8: NT$2,202,779.70
B9: 折舊 | C9: NT$135,000.00 | D9: NT$135,533.10 | E9: NT$139,707.60 | F9: NT$149,226.30 | G9: NT$150,723.30 | H9: NT$152,052.60 | I9: NT$166,406.40
B10: 利息 | C10: NT$75,000.00 | D10: NT$82,374.60 | E10: NT$86,793.30 | F10: NT$94,083.60 | G10: NT$94,455.90 | H10: NT$100,149.00 | I10: NT$113,684.10
B11: 淨收益 | C11: NT$1,620,000.00 | D11: NT$1,642,832.25 | E11: NT$1,675,824.30 | F11: NT$1,792,438.50 | G11: NT$1,844,507.70 | H11: NT$1,988,163.00 | I11: NT$2,024,245.50
B12: 稅金 | C12: NT$660,000.00 | D12: NT$717,616.20 | E12: NT$767,302.20 | F12: NT$824,965.80 | G12: NT$850,070.10 | H12: NT$882,735.90 | I12: NT$942,247.50
B13: 稅後淨利 | C13: NT$960,000.00 | D13: NT$1,048,304.70 | E13: NT$1,152,555.90 | F13: NT$1,196,851.50 | G13: NT$1,218,231.90 | H13: NT$1,273,146.00 | I13: NT$1,507,430.40
B14: 指標 1 | C14: NT$384.00 | D14: NT$384.30 | E14: NT$413.40 | F14: NT$428.70 | G14: NT$467.10 | H14: NT$503.40 | I14: NT$598.80
B15: 指標 2 | C15: NT$546.00 | D15: NT$557.70 | E15: NT$576.60 | F15: NT$605.10 | G15: NT$614.40 | H15: NT$655.20 | I15: NT$780.30
B16: 指標 3 | C16: NT$573.00 | D16: NT$616.50 | E16: NT$656.10 | F16: NT$695.70 | G16: NT$740.10 | H16: NT$791.70 | I16: NT$932.40
B17: 指標 4 | C17: NT$363.00 | D17: NT$366.30 | E17: NT$377.70 | F17: NT$411.00 | G17: NT$412.80 | H17: NT$437.70 | I17: NT$447.60
B18: 指標 5 | C18: NT$22.50 | D18: NT$23.70 | E18: NT$25.50 | F18: NT$26.70 | G18: NT$27.30 | H18: NT$30.00 | I18: NT$30.90
B19: 指標 6 | C19: NT$6.90 | D19: NT$7.50 | E19: NT$8.10 | F19: NT$8.40 | G19: NT$8.70 | H19: NT$9.00 | I19: NT$10.20

Sheet 關鍵指標設定
B2: 在此定義關鍵指標
B3: 選取最多 5 項關鍵指標以顯示於報表頂端
B4: 按一下以檢視財務報表
B5: 1 | C5: 收入 | E5: =IF(ISBLANK(C5),"← 請從下拉式選單選取一個值",IF(COUNTIF($C$5:C5,C5)>1,"您已選取過 "&C5&"。","")) -> 
B6: 2 | C6: 淨收益 | E6: =IF(ISBLANK(C6),"← 請從下拉式選單選取一個值",IF(COUNTIF($C$5:C6,C6)>1,"您已選取過 "&C6&"。","")) -> 
B7: 3 | C7: 利息 | E7: =IF(ISBLANK(C7),"← 請從下拉式選單選取一個值",IF(COUNTIF($C$5:C7,C7)>1,"您已選取過 "&C7&"。","")) -> 
B8: 4 | C8: 折舊 | E8: =IF(ISBLANK(C8),"← 請從下拉式選單選取一個值",IF(COUNTIF($C$5:C8,C8)>1,"您已選取過 "&C8&"。","")) -> 
B9: 5 | C9: 營運利潤 | E9: =IF(ISBLANK(C9),"← 請從下拉式選單選取一個值",IF(COUNTIF($C$5:C9,C9)>1,"您已選取過 "&C9&"。","")) -> 

Sheet 計算 (hidden)
A1: 此工作表用於財務報表計算，應保持隱藏。
D2: Position
B3: 本年度 | C3: =SelectedYear -> 2016 | D3: =MATCH(C3,lstYears,0)+1 -> 8
B4: 前一年 | C4: =C3-1 -> 2015 | D4: =MATCH(C4,lstYears,0)+1 -> 7
B6: Position | C6: =MATCH(C7,lstYears,0)+1 -> 4 | D6: =MATCH(D7,lstYears,0)+1 -> 5 | E6: =MATCH(E7,lstYears,0)+1 -> 6 | F6: =MATCH(F7,lstYears,0)+1 -> 7 | G6: =MATCH(G7,lstYears,0)+1 -> 8 | I6: =COUNT(C6:G6) -> 5
B7: 關鍵指標 | C7: =D7-1 -> 2012 | D7: =E7-1 -> 2013 | E7: =F7-1 -> 2014 | F7: =G7-1 -> 2015 | G7: =C3 -> 2016
A8: =MATCH(B8,財務資料輸入!$B$6:$B$30,0) -> 1 | B8: =IF(關鍵指標設定!C5="","",關鍵指標設定!C5) -> 收入 | C8: =IFERROR(INDEX(財務資料輸入!$B$6:$I$30,$A8,C$6),NA()) -> 4281851.4 | D8: =IFERROR(INDEX(財務資料輸入!$B$6:$I$30,$A8,D$6),NA()) -> 4520623.8 | E8: =IFERROR(INDEX(財務資料輸入!$B$6:$I$30,$A8,E$6),NA()) -> 4951336.8 | F8: =IFERROR(INDEX(財務資料輸入!$B$6:$I$30,$A8,F$6),NA()) -> 5400798.9 | G8: =IFERROR(INDEX(財務資料輸入!$B$6:$I$30,$A8,G$6),NA()) -> 5417516.4 | H8: =IFERROR(G8/F8-1,"") -> 0%
A9: =MATCH(B9,財務資料輸入!$B$6:$B$30,0) -> 6 | B9: =IF(關鍵指標設定!C6="","",關鍵指標設定!C6) -> 淨收益 | C9: =IFERROR(INDEX(財務資料輸入!$B$6:$I$30,$A9,C$6),NA()) -> 1675824.3 | D9: =IFERROR(INDEX(財務資料輸入!$B$6:$I$30,$A9,D$6),NA()) -> 1792438.5 | E9: =IFERROR(INDEX(財務資料輸入!$B$6:$I$30,$A9,E$6),NA()) -> 1844507.7 | F9: =IFERROR(INDEX(財務資料輸入!$B$6:$I$30,$A9,F$6),NA()) -> 1988163 | G9: =IFERROR(INDEX(財務資料輸入!$B$6:$I$30,$A9,G$6),NA()) -> 2024245.5 | H9: =IFERROR(G9/F9-1,"") -> 2%
A10: =MATCH(B10,財務資料輸入!$B$6:$B$30,0) -> 5 | B10: =IF(關鍵指標設定!C7="","",關鍵指標設定!C7) -> 利息 | C10: =IFERROR(INDEX(財務資料輸入!$B$6:$I$30,$A10,C$6),NA()) -> 86793.3 | D10: =IFERROR(INDEX(財務資料輸入!$B$6:$I$30,$A10,D$6),NA()) -> 94083.6 | E10: =IFERROR(INDEX(財務資料輸入!$B$6:$I$30,$A10,E$6),NA()) -> 94455.9 | F10: =IFERROR(INDEX(財務資料輸入!$B$6:$I$30,$A10,F$6),NA()) -> 100149 | G10: =IFERROR(INDEX(財務資料輸入!$B$6:$I$30,$A10,G$6),NA()) -> 113684.1 | H10: 14%
A11: =MATCH(B11,財務資料輸入!$B$6:$B$30,0) -> 4 | B11: =IF(關鍵指標設定!C8="","",關鍵指標設定!C8) -> 折舊 | C11: =IFERROR(INDEX(財務資料輸入!$B$6:$I$30,$A11,C$6),NA()) -> 139707.6 | D11: =IFERROR(INDEX(財務資料輸入!$B$6:$I$30,$A11,D$6),NA()) -> 149226.3 | E11: =IFERROR(INDEX(財務資料輸入!$B$6:$I$30,$A11,E$6),NA()) -> 150723.3 | F11: =IFERROR(INDEX(財務資料輸入!$B$6:$I$30,$A11,F$6),NA()) -> 152052.6 | G11: =IFERROR(INDEX(財務資料輸入!$B$6:$I$30,$A11,G$6),NA()) -> 166406.4 | H11: 9%
A12: =MATCH(B12,財務資料輸入!$B$6:$B$30,0) -> 3 | B12: =IF(關鍵指標設定!C9="","",關鍵指標設定!C9) -> 營運利潤 | C12: =IFERROR(INDEX(財務資料輸入!$B$6:$I$30,$A12,C$6),NA()) -> 2065730.7 | D12: =IFERROR(INDEX(財務資料輸入!$B$6:$I$30,$A12,D$6),NA()) -> 2269297.5 | E12: =IFERROR(INDEX(財務資料輸入!$B$6:$I$30,$A12,E$6),NA()) -> 2302657.8 | F12: =IFERROR(INDEX(財務資料輸入!$B$6:$I$30,$A12,F$6),NA()) -> 2319534.9 | G12: =IFERROR(INDEX(財務資料輸入!$B$6:$I$30,$A12,G$6),NA()) -> 2202779.7 | H12: -5%
B14: 所有指標 (最多支援 25 項指標)
A15: =ROWS($B$15:B15) -> 1 | B15: =IF(財務資料輸入!B6=0,"",財務資料輸入!B6) -> 收入 | C15: =IF(B15="",NA(),IFERROR(INDEX(財務資料輸入!$B$6:$I$30,$A15,C$6),NA())) -> 4281851.4 | D15: =IF(B15="",NA(),IFERROR(INDEX(財務資料輸入!$B$6:$I$30,$A15,D$6),NA())) -> 4520623.8 | E15: =IF(B15="",NA(),IFERROR(INDEX(財務資料輸入!$B$6:$I$30,$A15,E$6),NA())) -> 4951336.8 | F15: =IF(B15="",NA(),IFERROR(INDEX(財務資料輸入!$B$6:$I$30,$A15,F$6),NA())) -> 5400798.9 | G15: =IF(B15="",NA(),IFERROR(INDEX(財務資料輸入!$B$6:$I$30,$A15,G$6),NA())) -> 5417516.4
A16: =ROWS($B$15:B16) -> 2 | B16: =IF(財務資料輸入!B7=0,"",財務資料輸入!B7) -> 營運費用 | C16: =IF(B16="",NA(),IFERROR(INDEX(財務資料輸入!$B$6:$I$30,$A16,C$6),NA())) -> 2277745.8 | D16: =IF(B16="",NA(),IFERROR(INDEX(財務資料輸入!$B$6:$I$30,$A16,D$6),NA())) -> 2367038.1 | E16: =IF(B16="",NA(),IFERROR(INDEX(財務資料輸入!$B$6:$I$30,$A16,E$6),NA())) -> 2450231.1 | F16: =IF(B16="",NA(),IFERROR(INDEX(財務資料輸入!$B$6:$I$30,$A16,F$6),NA())) -> 2426499.9 | G16: =IF(B16="",NA(),IFERROR(INDEX(財務資料輸入!$B$6:$I$30,$A16,G$6),NA())) -> 2832583.5
A17: =ROWS($B$15:B17) -> 3 | B17: =IF(財務資料輸入!B8=0,"",財務資料輸入!B8) -> 營運利潤 | C17: =IF(B17="",NA(),IFERROR(INDEX(財務資料輸入!$B$6:$I$30,$A17,C$6),NA())) -> 2065730.7 | D17: =IF(B17="",NA(),IFERROR(INDEX(財務資料輸入!$B$6:$I$30,$A17,D$6),NA())) -> 2269297.5 | E17: =IF(B17="",NA(),IFERROR(INDEX(財務資料輸入!$B$6:$I$30,$A17,E$6),NA())) -> 2302657.8 | F17: =IF(B17="",NA(),IFERROR(INDEX(財務資料輸入!$B$6:$I$30,$A17,F$6),NA())) -> 2319534.9 | G17: =IF(B17="",NA(),IFERROR(INDEX(財務資料輸入!$B$6:$I$30,$A17,G$6),NA())) -> 2202779.7
A18: =ROWS($B$15:B18) -> 4 | B18: =IF(財務資料輸入!B9=0,"",財務資料輸入!B9) -> 折舊 | C18: =IF(B18="",NA(),IFERROR(INDEX(財務資料輸入!$B$6:$I$30,$A18,C$6),NA())) -> 139707.6 | D18: =IF(B18="",NA(),IFERROR(INDEX(財務資料輸入!$B$6:$I$30,$A18,D$6),NA())) -> 149226.3 | E18: =IF(B18="",NA(),IFERROR(INDEX(財務資料輸入!$B$6:$I$30,$A18,E$6),NA())) -> 150723.3 | F18: =IF(B18="",NA(),IFERROR(INDEX(財務資料輸入!$B$6:$I$30,$A18,F$6),NA())) -> 152052.6 | G18: =IF(B18="",NA(),IFERROR(INDEX(財務資料輸入!$B$6:$I$30,$A18,G$6),NA())) -> 166406.4
A19: =ROWS($B$15:B19) -> 5 | B19: =IF(財務資料輸入!B10=0,"",財務資料輸入!B10) -> 利息 | C19: =IF(B19="",NA(),IFERROR(INDEX(財務資料輸入!$B$6:$I$30,$A19,C$6),NA())) -> 86793.3 | D19: =IF(B19="",NA(),IFERROR(INDEX(財務資料輸入!$B$6:$I$30,$A19,D$6),NA())) -> 94083.6 | E19: =IF(B19="",NA(),IFERROR(INDEX(財務資料輸入!$B$6:$I$30,$A19,E$6),NA())) -> 94455.9 | F19: =IF(B19="",NA(),IFERROR(INDEX(財務資料輸入!$B$6:$I$30,$A19,F$6),NA())) -> 100149 | G19: =IF(B19="",NA(),IFERROR(INDEX(財務資料輸入!$B$6:$I$30,$A19,G$6),NA())) -> 113684.1
A20: =ROWS($B$15:B20) -> 6 | B20: =IF(財務資料輸入!B11=0,"",財務資料輸入!B11) -> 淨收益 | C20: =IF(B20="",NA(),IFERROR(INDEX(財務資料輸入!$B$6:$I$30,$A20,C$6),NA())) -> 1675824.3 | D20: =IF(B20="",NA(),IFERROR(INDEX(財務資料輸入!$B$6:$I$30,$A20,D$6),NA())) -> 1792438.5 | E20: =IF(B20="",NA(),IFERROR(INDEX(財務資料輸入!$B$6:$I$30,$A20,E$6),NA())) -> 1844507.7 | F20: =IF(B20="",NA(),IFERROR(INDEX(財務資料輸入!$B$6:$I$30,$A20,F$6),NA())) -> 1988163 | G20: =IF(B20="",NA(),IFERROR(INDEX(財務資料輸入!$B$6:$I$30,$A20,G$6),NA())) -> 2024245.5
A21: =ROWS($B$15:B21) -> 7 | B21: =IF(財務資料輸入!B12=0,"",財務資料輸入!B12) -> 稅金 | C21: =IF(B21="",NA(),IFERROR(INDEX(財務資料輸入!$B$6:$I$30,$A21,C$6),NA())) -> 767302.2 | D21: =IF(B21="",NA(),IFERROR(INDEX(財務資料輸入!$B$6:$I$30,$A21,D$6),NA())) -> 824965.8 | E21: =IF(B21="",NA(),IFERROR(INDEX(財務資料輸入!$B$6:$I$30,$A21,E$6),NA())) -> 850070.1 | F21: =IF(B21="",NA(),IFERROR(INDEX(財務資料輸入!$B$6:$I$30,$A21,F$6),NA())) -> 882735.9 | G21: =IF(B21="",NA(),IFERROR(INDEX(財務資料輸入!$B$6:$I$30,$A21,G$6),NA())) -> 942247.5
A22: =ROWS($B$15:B22) -> 8 | B22: =IF(財務資料輸入!B13=0,"",財務資料輸入!B13) -> 稅後淨利 | C22: =IF(B22="",NA(),IFERROR(INDEX(財務資料輸入!$B$6:$I$30,$A22,C$6),NA())) -> 1152555.9 | D22: =IF(B22="",NA(),IFERROR(INDEX(財務資料輸入!$B$6:$I$30,$A22,D$6),NA())) -> 1196851.5 | E22: =IF(B22="",NA(),IFERROR(INDEX(財務資料輸入!$B$6:$I$30,$A22,E$6),NA())) -> 1218231.9 | F22: =IF(B22="",NA(),IFERROR(INDEX(財務資料輸入!$B$6:$I$30,$A22,F$6),NA())) -> 1273146 | G22: =IF(B22="",NA(),IFERROR(INDEX(財務資料輸入!$B$6:$I$30,$A22,G$6),NA())) -> 1507430.4
A23: =ROWS($B$15:B23) -> 9 | B23: =IF(財務資料輸入!B14=0,"",財務資料輸入!B14) -> 指標 1 | C23: =IF(B23="",NA(),IFERROR(INDEX(財務資料輸入!$B$6:$I$30,$A23,C$6),NA())) -> 413.4 | D23: =IF(B23="",NA(),IFERROR(INDEX(財務資料輸入!$B$6:$I$30,$A23,D$6),NA())) -> 428.7 | E23: =IF(B23="",NA(),IFERROR(INDEX(財務資料輸入!$B$6:$I$30,$A23,E$6),NA())) -> 467.1 | F23: =IF(B23="",NA(),IFERROR(INDEX(財務資料輸入!$B$6:$I$30,$A23,F$6),NA())) -> 503.4 | G23: =IF(B23="",NA(),IFERROR(INDEX(財務資料輸入!$B$6:$I$30,$A23,G$6),NA())) -> 598.8
A24: =ROWS($B$15:B24) -> 10 | B24: =IF(財務資料輸入!B15=0,"",財務資料輸入!B15) -> 指標 2 | C24: =IF(B24="",NA(),IFERROR(INDEX(財務資料輸入!$B$6:$I$30,$A24,C$6),NA())) -> 576.6 | D24: =IF(B24="",NA(),IFERROR(INDEX(財務資料輸入!$B$6:$I$30,$A24,D$6),NA())) -> 605.1 | E24: =IF(B24="",NA(),IFERROR(INDEX(財務資料輸入!$B$6:$I$30,$A24,E$6),NA())) -> 614.4 | F24: =IF(B24="",NA(),IFERROR(INDEX(財務資料輸入!$B$6:$I$30,$A24,F$6),NA())) -> 655.2 | G24: =IF(B24="",NA(),IFERROR(INDEX(財務資料輸入!$B$6:$I$30,$A24,G$6),NA())) -> 780.3
A25: =ROWS($B$15:B25) -> 11 | B25: =IF(財務資料輸入!B16=0,"",財務資料輸入!B16) -> 指標 3 | C25: =IF(B25="",NA(),IFERROR(INDEX(財務資料輸入!$B$6:$I$30,$A25,C$6),NA())) -> 656.1 | D25: =IF(B25="",NA(),IFERROR(INDEX(財務資料輸入!$B$6:$I$30,$A25,D$6),NA())) -> 695.7 | E25: =IF(B25="",NA(),IFERROR(INDEX(財務資料輸入!$B$6:$I$30,$A25,E$6),NA())) -> 740.1 | F25: =IF(B25="",NA(),IFERROR(INDEX(財務資料輸入!$B$6:$I$30,$A25,F$6),NA())) -> 791.7 | G25: =IF(B25="",NA(),IFERROR(INDEX(財務資料輸入!$B$6:$I$30,$A25,G$6),NA())) -> 932.4
A26: =ROWS($B$15:B26) -> 12 | B26: =IF(財務資料輸入!B17=0,"",財務資料輸入!B17) -> 指標 4 | C26: =IF(B26="",NA(),IFERROR(INDEX(財務資料輸入!$B$6:$I$30,$A26,C$6),NA())) -> 377.7 | D26: =IF(B26="",NA(),IFERROR(INDEX(財務資料輸入!$B$6:$I$30,$A26,D$6),NA())) -> 411 | E26: =IF(B26="",NA(),IFERROR(INDEX(財務資料輸入!$B$6:$I$30,$A26,E$6),NA())) -> 412.8 | F26: =IF(B26="",NA(),IFERROR(INDEX(財務資料輸入!$B$6:$I$30,$A26,F$6),NA())) -> 437.7 | G26: =IF(B26="",NA(),IFERROR(INDEX(財務資料輸入!$B$6:$I$30,$A26,G$6),NA())) -> 447.6
A27: =ROWS($B$15:B27) -> 13 | B27: =IF(財務資料輸入!B18=0,"",財務資料輸入!B18) -> 指標 5 | C27: =IF(B27="",NA(),IFERROR(INDEX(財務資料輸入!$B$6:$I$30,$A27,C$6),NA())) -> 25.5 | D27: =IF(B27="",NA(),IFERROR(INDEX(財務資料輸入!$B$6:$I$30,$A27,D$6),NA())) -> 26.7 | E27: =IF(B27="",NA(),IFERROR(INDEX(財務資料輸入!$B$6:$I$30,$A27,E$6),NA())) -> 27.3 | F27: =IF(B27="",NA(),IFERROR(INDEX(財務資料輸入!$B$6:$I$30,$A27,F$6),NA())) -> 30 | G27: =IF(B27="",NA(),IFERROR(INDEX(財務資料輸入!$B$6:$I$30,$A27,G$6),NA())) -> 30.9
A28: =ROWS($B$15:B28) -> 14 | B28: =IF(財務資料輸入!B19=0,"",財務資料輸入!B19) -> 指標 6 | C28: =IF(B28="",NA(),IFERROR(INDEX(財務資料輸入!$B$6:$I$30,$A28,C$6),NA())) -> 8.1 | D28: =IF(B28="",NA(),IFERROR(INDEX(財務資料輸入!$B$6:$I$30,$A28,D$6),NA())) -> 8.4 | E28: =IF(B28="",NA(),IFERROR(INDEX(財務資料輸入!$B$6:$I$30,$A28,E$6),NA())) -> 8.7 | F28: =IF(B28="",NA(),IFERROR(INDEX(財務資料輸入!$B$6:$I$30,$A28,F$6),NA())) -> 9 | G28: =IF(B28="",NA(),IFERROR(INDEX(財務資料輸入!$B$6:$I$30,$A28,G$6),NA())) -> 10.2
A29: =ROWS($B$15:B29) -> 15 | B29: =IF(財務資料輸入!B20=0,"",財務資料輸入!B20) ->  | C29: =IF(B29="",NA(),IFERROR(INDEX(財務資料輸入!$B$6:$I$30,$A29,C$6),NA())) ->  | D29: =IF(B29="",NA(),IFERROR(INDEX(財務資料輸入!$B$6:$I$30,$A29,D$6),NA())) ->  | E29: =IF(B29="",NA(),IFERROR(INDEX(財務資料輸入!$B$6:$I$30,$A29,E$6),NA())) ->  | F29: =IF(B29="",NA(),IFERROR(INDEX(財務資料輸入!$B$6:$I$30,$A29,F$6),NA())) ->  | G29: =IF(B29="",NA(),IFERROR(INDEX(財務資料輸入!$B$6:$I$30,$A29,G$6),NA())) -> 
A30: =ROWS($B$15:B30) -> 16 | B30: =IF(財務資料輸入!B21=0,"",財務資料輸入!B21) ->  | C30: =IF(B30="",NA(),IFERROR(INDEX(財務資料輸入!$B$6:$I$30,$A30,C$6),NA())) ->  | D30: =IF(B30="",NA(),IFERROR(INDEX(財務資料輸入!$B$6:$I$30,$A30,D$6),NA())) ->  | E30: =IF(B30="",NA(),IFERROR(INDEX(財務資料輸入!$B$6:$I$30,$A30,E$6),NA())) ->  | F30: =IF(B30="",NA(),IFERROR(INDEX(財務資料輸入!$B$6:$I$30,$A30,F$6),NA())) ->  | G30: =IF(B30="",NA(),IFERROR(INDEX(財務資料輸入!$B$6:$I$30,$A30,G$6),NA())) -> 
A31: =ROWS($B$15:B31) -> 17 | B31: =IF(財務資料輸入!B22=0,"",財務資料輸入!B22) ->  | C31: =IF(B31="",NA(),IFERROR(INDEX(財務資料輸入!$B$6:$I$30,$A31,C$6),NA())) ->  | D31: =IF(B31="",NA(),IFERROR(INDEX(財務資料輸入!$B$6:$I$30,$A31,D$6),NA())) ->  | E31: =IF(B31="",NA(),IFERROR(INDEX(財務資料輸入!$B$6:$I$30,$A31,E$6),NA())) ->  | F31: =IF(B31="",NA(),IFERROR(INDEX(財務資料輸入!$B$6:$I$30,$A31,F$6),NA())) ->  | G31: =IF(B31="",NA(),IFERROR(INDEX(財務資料輸入!$B$6:$I$30,$A31,G$6),NA())) -> 
A32: =ROWS($B$15:B32) -> 18 | B32: =IF(財務資料輸入!B23=0,"",財務資料輸入!B23) ->  | C32: =IF(B32="",NA(),IFERROR(INDEX(財務資料輸入!$B$6:$I$30,$A32,C$6),NA())) ->  | D32: =IF(B32="",NA(),IFERROR(INDEX(財務資料輸入!$B$6:$I$30,$A32,D$6),NA())) ->  | E32: =IF(B32="",NA(),IFERROR(INDEX(財務資料輸入!$B$6:$I$30,$A32,E$6),NA())) ->  | F32: =IF(B32="",NA(),IFERROR(INDEX(財務資料輸入!$B$6:$I$30,$A32,F$6),NA())) ->  | G32: =IF(B32="",NA(),IFERROR(INDEX(財務資料輸入!$B$6:$I$30,$A32,G$6),NA())) -> 
A33: =ROWS($B$15:B33) -> 19 | B33: =IF(財務資料輸入!B24=0,"",財務資料輸入!B24) ->  | C33: =IF(B33="",NA(),IFERROR(INDEX(財務資料輸入!$B$6:$I$30,$A33,C$6),NA())) ->  | D33: =IF(B33="",NA(),IFERROR(INDEX(財務資料輸入!$B$6:$I$30,$A33,D$6),NA())) ->  | E33: =IF(B33="",NA(),IFERROR(INDEX(財務資料輸入!$B$6:$I$30,$A33,E$6),NA())) ->  | F33: =IF(B33="",NA(),IFERROR(INDEX(財務資料輸入!$B$6:$I$30,$A33,F$6),NA())) ->  | G33: =IF(B33="",NA(),IFERROR(INDEX(財務資料輸入!$B$6:$I$30,$A33,G$6),NA())) -> 
A34: =ROWS($B$15:B34) -> 20 | B34: =IF(財務資料輸入!B25=0,"",財務資料輸入!B25) ->  | C34: =IF(B34="",NA(),IFERROR(INDEX(財務資料輸入!$B$6:$I$30,$A34,C$6),NA())) ->  | D34: =IF(B34="",NA(),IFERROR(INDEX(財務資料輸入!$B$6:$I$30,$A34,D$6),NA())) ->  | E34: =IF(B34="",NA(),IFERROR(INDEX(財務資料輸入!$B$6:$I$30,$A34,E$6),NA())) ->  | F34: =IF(B34="",NA(),IFERROR(INDEX(財務資料輸入!$B$6:$I$30,$A34,F$6),NA())) ->  | G34: =IF(B34="",NA(),IFERROR(INDEX(財務資料輸入!$B$6:$I$30,$A34,G$6),NA())) -> 
A35: =ROWS($B$15:B35) -> 21 | B35: =IF(財務資料輸入!B26=0,"",財務資料輸入!B26) ->  | C35: =IF(B35="",NA(),IFERROR(INDEX(財務資料輸入!$B$6:$I$30,$A35,C$6),NA())) ->  | D35: =IF(B35="",NA(),IFERROR(INDEX(財務資料輸入!$B$6:$I$30,$A35,D$6),NA())) ->  | E35: =IF(B35="",NA(),IFERROR(INDEX(財務資料輸入!$B$6:$I$30,$A35,E$6),NA())) ->  | F35: =IF(B35="",NA(),IFERROR(INDEX(財務資料輸入!$B$6:$I$30,$A35,F$6),NA())) ->  | G35: =IF(B35="",NA(),IFERROR(INDEX(財務資料輸入!$B$6:$I$30,$A35,G$6),NA())) -> 
A36: =ROWS($B$15:B36) -> 22 | B36: =IF(財務資料輸入!B27=0,"",財務資料輸入!B27) ->  | C36: =IF(B36="",NA(),IFERROR(INDEX(財務資料輸入!$B$6:$I$30,$A36,C$6),NA())) ->  | D36: =IF(B36="",NA(),IFERROR(INDEX(財務資料輸入!$B$6:$I$30,$A36,D$6),NA())) ->  | E36: =IF(B36="",NA(),IFERROR(INDEX(財務資料輸入!$B$6:$I$30,$A36,E$6),NA())) ->  | F36: =IF(B36="",NA(),IFERROR(INDEX(財務資料輸入!$B$6:$I$30,$A36,F$6),NA())) ->  | G36: =IF(B36="",NA(),IFERROR(INDEX(財務資料輸入!$B$6:$I$30,$A36,G$6),NA())) -> 
A37: =ROWS($B$15:B37) -> 23 | B37: =IF(財務資料輸入!B28=0,"",財務資料輸入!B28) ->  | C37: =IF(B37="",NA(),IFERROR(INDEX(財務資料輸入!$B$6:$I$30,$A37,C$6),NA())) ->  | D37: =IF(B37="",NA(),IFERROR(INDEX(財務資料輸入!$B$6:$I$30,$A37,D$6),NA())) ->  | E37: =IF(B37="",NA(),IFERROR(INDEX(財務資料輸入!$B$6:$I$30,$A37,E$6),NA())) ->  | F37: =IF(B37="",NA(),IFERROR(INDEX(財務資料輸入!$B$6:$I$30,$A37,F$6),NA())) ->  | G37: =IF(B37="",NA(),IFERROR(INDEX(財務資料輸入!$B$6:$I$30,$A37,G$6),NA())) -> 
A38: =ROWS($B$15:B38) -> 24 | B38: =IF(財務資料輸入!B29=0,"",財務資料輸入!B29) ->  | C38: =IF(B38="",NA(),IFERROR(INDEX(財務資料輸入!$B$6:$I$30,$A38,C$6),NA())) ->  | D38: =IF(B38="",NA(),IFERROR(INDEX(財務資料輸入!$B$6:$I$30,$A38,D$6),NA())) ->  | E38: =IF(B38="",NA(),IFERROR(INDEX(財務資料輸入!$B$6:$I$30,$A38,E$6),NA())) ->  | F38: =IF(B38="",NA(),IFERROR(INDEX(財務資料輸入!$B$6:$I$30,$A38,F$6),NA())) ->  | G38: =IF(B38="",NA(),IFERROR(INDEX(財務資料輸入!$B$6:$I$30,$A38,G$6),NA())) -> 
A39: =ROWS($B$15:B39) -> 25 | B39: =IF(財務資料輸入!B30=0,"",財務資料輸入!B30) ->  | C39: =IF(B39="",NA(),IFERROR(INDEX(財務資料輸入!$B$6:$I$30,$A39,C$6),NA())) ->  | D39: =IF(B39="",NA(),IFERROR(INDEX(財務資料輸入!$B$6:$I$30,$A39,D$6),NA())) ->  | E39: =IF(B39="",NA(),IFERROR(INDEX(財務資料輸入!$B$6:$I$30,$A39,E$6),NA())) ->  | F39: =IF(B39="",NA(),IFERROR(INDEX(財務資料輸入!$B$6:$I$30,$A39,F$6),NA())) ->  | G39: =IF(B39="",NA(),IFERROR(INDEX(財務資料輸入!$B$6:$I$30,$A39,G$6),NA())) -> 
